[Event "Late-Titled-Tuesday-Blitz-March-12-2024"]
[Site "Chess.com"]
[Date "2024.03.12"]
[Round "9"]
[White "EsmeraldasAnderson03"]
[Black "Witik"]
[Result "0-1"]
[WhiteElo "2581"]
[BlackElo "2745"]
[TimeControl "180+1"]
[EndTime "15:42:58 PDT"]
[Termination "Witik won on time"]

1. d4 {[%clk 0:03:00.9]} 1... Nf6 {[%clk 0:02:59.9]} 2. c4 {[%clk 0:03:01]} 2...
e6 {[%clk 0:02:59.8]} 3. Nc3 {[%clk 0:03:01.2]} 3... Bb4 {[%clk 0:02:59.8]} 4.
f3 {[%clk 0:03:01.9]} 4... c5 {[%clk 0:02:59.3]} 5. d5 {[%clk 0:03:01.9]} 5...
b5 {[%clk 0:02:59.8]} 6. e4 {[%clk 0:03:02.1]} 6... d6 {[%clk 0:03:00.4]} 7. Bd3
{[%clk 0:03:02.7]} 7... Nbd7 {[%clk 0:02:56.1]} 8. Ne2 {[%clk 0:03:02.5]} 8...
Ne5 {[%clk 0:02:54.1]} 9. O-O {[%clk 0:03:02.3]} 9... bxc4 {[%clk 0:02:34.6]}
10. Bc2 {[%clk 0:03:02.4]} 10... O-O {[%clk 0:02:31.5]} 11. f4 {[%clk
0:02:55.5]} 11... Nd3 {[%clk 0:02:25.8]} 12. Bxd3 {[%clk 0:02:54.9]} 12... cxd3
{[%clk 0:02:26.7]} 13. Qxd3 {[%clk 0:02:54.9]} 13... exd5 {[%clk 0:02:10.5]} 14.
Nxd5 {[%clk 0:02:43.1]} 14... Nxd5 {[%clk 0:02:10.2]} 15. Qxd5 {[%clk
0:02:14.8]} 15... Ba6 {[%clk 0:02:08.9]} 16. Rf2 {[%clk 0:02:08.6]} 16... Be1
{[%clk 0:01:48.7]} 17. Ng3 {[%clk 0:02:02.8]} 17... Bxf2+ {[%clk 0:01:46]} 18.
Kxf2 {[%clk 0:02:03.7]} 18... Qb6 {[%clk 0:01:38.1]} 19. Nf5 {[%clk 0:01:47]}
19... Bb7 {[%clk 0:01:28.5]} 20. Qc4 {[%clk 0:01:21.1]} 20... Rae8 {[%clk
0:01:08.8]} 21. Qc3 {[%clk 0:01:13.6]} 21... f6 {[%clk 0:01:02.5]} 22. Qg3
{[%clk 0:01:13.7]} 22... Qc7 {[%clk 0:00:53.9]} 23. Bd2 {[%clk 0:01:08.4]} 23...
Bxe4 {[%clk 0:00:47.5]} 24. Ne3 {[%clk 0:00:58]} 24... d5 {[%clk 0:00:45]} 25.
Rc1 {[%clk 0:00:51.7]} 25... d4 {[%clk 0:00:39]} 26. Ng4 {[%clk 0:00:49.6]}
26... Kh8 {[%clk 0:00:34]} 27. h4 {[%clk 0:00:48.2]} 27... Qf7 {[%clk
0:00:25.3]} 28. Rxc5 {[%clk 0:00:43.5]} 28... Qxa2 {[%clk 0:00:23.4]} 29. Bc1
{[%clk 0:00:43.4]} 29... Rc8 {[%clk 0:00:19]} 30. Rxc8 {[%clk 0:00:12.7]} 30...
Rxc8 {[%clk 0:00:18.9]} 31. f5 {[%clk 0:00:09.7]} 31... Rc2+ {[%clk 0:00:12.6]}
32. Kg1 {[%clk 0:00:10]} 32... Rxc1+ {[%clk 0:00:12.5]} 33. Kh2 {[%clk
0:00:10.9]} 33... Rc8 {[%clk 0:00:09.3]} 34. Qf4 {[%clk 0:00:10.1]} 34... Qd5
{[%clk 0:00:07]} 35. h5 {[%clk 0:00:10.8]} 35... Qxf5 {[%clk 0:00:07]} 36. Qg3
{[%clk 0:00:11.4]} 36... Qxh5+ {[%clk 0:00:07.2]} 37. Kg1 {[%clk 0:00:12.1]}
37... Qg5 {[%clk 0:00:07.6]} 38. Qh3 {[%clk 0:00:11.7]} 38... Re8 {[%clk
0:00:06.5]} 39. Nf2 {[%clk 0:00:11]} 39... Bf5 {[%clk 0:00:05.7]} 40. Qa3 {[%clk
0:00:06.3]} 40... h6 {[%clk 0:00:03.2]} 41. Nh3 {[%clk 0:00:06.3]} 41... Qc1+
{[%clk 0:00:03.4]} 42. Kh2 {[%clk 0:00:06.7]} 42... Qe3 {[%clk 0:00:04.3]} 43.
Qxa7 {[%clk 0:00:06.3]} 43... Qe5+ {[%clk 0:00:05.1]} 44. Kh1 {[%clk 0:00:06.1]}
44... d3 {[%clk 0:00:05.8]} 45. Nf2 {[%clk 0:00:04.2]} 45... d2 {[%clk
0:00:06.2]} 0-1

[Event "Late-Titled-Tuesday-Blitz-March-12-2024"]
[Site "Chess.com"]
[Date "2024.03.12"]
[Round "9"]
[White "Rodalquilar"]
[Black "GlavkonVVS"]
[Result "1-0"]
[WhiteElo "2796"]
[BlackElo "2606"]
[TimeControl "180+1"]
[EndTime "15:43:10 PDT"]
[Termination "Rodalquilar won by checkmate"]

1. d4 {[%clk 0:02:31.4]} 1... Nf6 {[%clk 0:02:59.9]} 2. Nf3 {[%clk 0:02:31.4]}
2... c5 {[%clk 0:03:00.3]} 3. c3 {[%clk 0:02:31.4]} 3... e6 {[%clk 0:02:57.6]}
4. Bf4 {[%clk 0:02:31.4]} 4... b6 {[%clk 0:02:53]} 5. e3 {[%clk 0:02:31.5]} 5...
Bb7 {[%clk 0:02:53.3]} 6. Nbd2 {[%clk 0:02:32]} 6... Be7 {[%clk 0:02:53.6]} 7.
h3 {[%clk 0:02:32.3]} 7... O-O {[%clk 0:02:53.6]} 8. Bd3 {[%clk 0:02:32.7]} 8...
d5 {[%clk 0:02:54]} 9. O-O {[%clk 0:02:32.8]} 9... Nc6 {[%clk 0:02:50.5]} 10.
Qe2 {[%clk 0:02:33.2]} 10... Bd6 {[%clk 0:02:45.3]} 11. Bxd6 {[%clk 0:02:25.9]}
11... Qxd6 {[%clk 0:02:45.1]} 12. e4 {[%clk 0:02:26.5]} 12... dxe4 {[%clk
0:02:38.3]} 13. Nxe4 {[%clk 0:02:26.8]} 13... Nxe4 {[%clk 0:02:35.6]} 14. Qxe4
{[%clk 0:02:24.3]} 14... f5 {[%clk 0:02:23.1]} 15. Qh4 {[%clk 0:02:24.3]} 15...
cxd4 {[%clk 0:02:09]} 16. Rfe1 {[%clk 0:02:21]} 16... Rae8 {[%clk 0:02:02.7]}
17. Bc4 {[%clk 0:02:04.8]} 17... Na5 {[%clk 0:01:52.8]} 18. Ng5 {[%clk
0:01:36.8]} 18... h6 {[%clk 0:01:50.7]} 19. Bxe6+ {[%clk 0:01:37]} 19... Rxe6
{[%clk 0:01:32.5]} 20. Nxe6 {[%clk 0:01:36.3]} 20... Rf6 {[%clk 0:01:18.7]} 21.
Nxd4 {[%clk 0:01:26]} 21... Rg6 {[%clk 0:01:14.2]} 22. f3 {[%clk 0:01:21]} 22...
Nc4 {[%clk 0:00:56.3]} 23. b3 {[%clk 0:00:40.7]} 23... Nd2 {[%clk 0:00:52.7]}
24. Rad1 {[%clk 0:00:39.4]} 24... Qxd4+ {[%clk 0:00:40.9]} 25. Qxd4 {[%clk
0:00:37.3]} 25... Nxf3+ {[%clk 0:00:41]} 26. Kf2 {[%clk 0:00:27.4]} 26... Nxd4
{[%clk 0:00:41.9]} 27. Rxd4 {[%clk 0:00:27.9]} 27... Rxg2+ {[%clk 0:00:41.8]}
28. Kf1 {[%clk 0:00:28.4]} 28... Rxa2 {[%clk 0:00:41]} 29. Re7 {[%clk
0:00:28.4]} 29... Bg2+ {[%clk 0:00:35]} 30. Ke1 {[%clk 0:00:22.1]} 30... Be4
{[%clk 0:00:15.5]} 31. Rdd7 {[%clk 0:00:20.4]} 31... Rg2 {[%clk 0:00:15.4]} 32.
Rxa7 {[%clk 0:00:20.6]} 32... f4 {[%clk 0:00:14.1]} 33. Rxe4 {[%clk 0:00:20.1]}
33... f3 {[%clk 0:00:14.1]} 34. Rf4 {[%clk 0:00:19.3]} 34... Re2+ {[%clk
0:00:11.4]} 35. Kf1 {[%clk 0:00:19.8]} 35... Re3 {[%clk 0:00:10.6]} 36. Rc7
{[%clk 0:00:20]} 36... b5 {[%clk 0:00:10.3]} 37. Kf2 {[%clk 0:00:20.3]} 37...
Rd3 {[%clk 0:00:10.5]} 38. Rxf3 {[%clk 0:00:20.8]} 38... Rd6 {[%clk 0:00:10.8]}
39. Rff7 {[%clk 0:00:19.8]} 39... Rg6 {[%clk 0:00:10.2]} 40. Ke3 {[%clk
0:00:20.4]} 40... Kh7 {[%clk 0:00:06.9]} 41. h4 {[%clk 0:00:19.9]} 41... h5
{[%clk 0:00:06.6]} 42. Kd4 {[%clk 0:00:20]} 42... Rg4+ {[%clk 0:00:06.8]} 43.
Kc5 {[%clk 0:00:20.5]} 43... b4 {[%clk 0:00:06.4]} 44. cxb4 {[%clk 0:00:20.6]}
44... Kh6 {[%clk 0:00:05.4]} 45. b5 {[%clk 0:00:21]} 45... Rxh4 {[%clk
0:00:05.3]} 46. b6 {[%clk 0:00:19.2]} 46... Rh1 {[%clk 0:00:04.5]} 47. b7 {[%clk
0:00:19.4]} 47... Rc1+ {[%clk 0:00:05.1]} 48. Kd6 {[%clk 0:00:19.8]} 48... Rd1+
{[%clk 0:00:05.4]} 49. Ke7 {[%clk 0:00:20.2]} 49... Re1+ {[%clk 0:00:05.9]} 50.
Kd8 {[%clk 0:00:20.6]} 50... Rd1+ {[%clk 0:00:05.2]} 51. Kc8 {[%clk 0:00:20.2]}
51... h4 {[%clk 0:00:04.2]} 52. b8=Q {[%clk 0:00:20.2]} 52... h3 {[%clk
0:00:03.4]} 53. Qb6+ {[%clk 0:00:20.5]} 53... g6 {[%clk 0:00:03.2]} 54. Rh7+
{[%clk 0:00:20.3]} 54... Kg5 {[%clk 0:00:03.5]} 55. Qe3+ {[%clk 0:00:20.5]}
55... Kf5 {[%clk 0:00:03.5]} 56. Rc5+ {[%clk 0:00:20.7]} 56... Kg4 {[%clk
0:00:03.6]} 57. Rg5# {[%clk 0:00:19.8]} 1-0

[Event "Late-Titled-Tuesday-Blitz-March-12-2024"]
[Site "Chess.com"]
[Date "2024.03.12"]
[Round "9"]
[White "LikeWater"]
[Black "Schattman"]
[Result "1/2-1/2"]
[WhiteElo "2686"]
[BlackElo "2486"]
[TimeControl "180+1"]
[EndTime "15:43:12 PDT"]
[Termination "Game drawn by repetition"]

1. e4 {[%clk 0:02:57.3]} 1... c5 {[%clk 0:03:00]} 2. Nf3 {[%clk 0:02:55.7]} 2...
e6 {[%clk 0:03:00.4]} 3. g3 {[%clk 0:02:54.8]} 3... d5 {[%clk 0:02:59.5]} 4.
exd5 {[%clk 0:02:52]} 4... exd5 {[%clk 0:02:59.9]} 5. Bg2 {[%clk 0:02:48.2]}
5... Nf6 {[%clk 0:02:58.3]} 6. O-O {[%clk 0:02:47.9]} 6... d4 {[%clk 0:02:58.7]}
7. b4 {[%clk 0:02:43.2]} 7... d3 {[%clk 0:02:50.9]} 8. Re1+ {[%clk 0:02:36.2]}
8... Be7 {[%clk 0:02:50.3]} 9. bxc5 {[%clk 0:02:32.1]} 9... O-O {[%clk
0:02:49.6]} 10. Ba3 {[%clk 0:02:21.5]} 10... Bf5 {[%clk 0:02:35.7]} 11. cxd3
{[%clk 0:02:17.3]} 11... Nc6 {[%clk 0:02:29]} 12. d4 {[%clk 0:02:07.7]} 12...
Nxd4 {[%clk 0:02:04.6]} 13. Nxd4 {[%clk 0:02:00]} 13... Qxd4 {[%clk 0:02:05.5]}
14. Nc3 {[%clk 0:01:59.7]} 14... Bxc5 {[%clk 0:01:50.2]} 15. Bxc5 {[%clk
0:02:00.6]} 15... Qxc5 {[%clk 0:01:49.1]} 16. Qb3 {[%clk 0:01:52]} 16... Rab8
{[%clk 0:01:44.2]} 17. d4 {[%clk 0:01:51.1]} 17... Qxd4 {[%clk 0:01:25.2]} 18.
Rad1 {[%clk 0:01:40.3]} 18... Qb6 {[%clk 0:01:19.2]} 19. Qxb6 {[%clk 0:01:39.9]}
19... axb6 {[%clk 0:01:18.8]} 20. Re5 {[%clk 0:01:37.9]} 20... Be6 {[%clk
0:01:13.7]} 21. Rb5 {[%clk 0:01:18]} 21... Rfc8 {[%clk 0:01:12.6]} 22. Ne4
{[%clk 0:01:18.1]} 22... Nxe4 {[%clk 0:00:59.3]} 23. Bxe4 {[%clk 0:01:19]} 23...
Bxa2 {[%clk 0:00:55]} 24. Rxb6 {[%clk 0:01:15.8]} 24... Be6 {[%clk 0:00:50.9]}
25. Rxb7 {[%clk 0:01:08.7]} 25... Rxb7 {[%clk 0:00:50.2]} 26. Bxb7 {[%clk
0:01:09.6]} 26... Rb8 {[%clk 0:00:48.3]} 27. Kg2 {[%clk 0:01:04.3]} 27... g6
{[%clk 0:00:47.4]} 28. Bf3 {[%clk 0:01:03.1]} 28... h5 {[%clk 0:00:45.2]} 29. h4
{[%clk 0:01:03.5]} 29... Kg7 {[%clk 0:00:44.9]} 30. Rd2 {[%clk 0:01:00.3]} 30...
Kf6 {[%clk 0:00:43.5]} 31. Re2 {[%clk 0:00:59.6]} 31... Rb5 {[%clk 0:00:40.9]}
32. Re3 {[%clk 0:00:59.6]} 32... Bd5 {[%clk 0:00:38.7]} 33. Bxd5 {[%clk
0:00:58.6]} 33... Rxd5 {[%clk 0:00:38.7]} 34. Rf3+ {[%clk 0:00:59.5]} 34... Kg7
{[%clk 0:00:38.4]} 35. Ra3 {[%clk 0:01:00.4]} 35... Rd7 {[%clk 0:00:37.5]} 36.
Kf3 {[%clk 0:00:58.5]} 36... Rc7 {[%clk 0:00:37.1]} 37. Rd3 {[%clk 0:00:56.7]}
37... Rb7 {[%clk 0:00:36.7]} 38. Rd4 {[%clk 0:00:56]} 38... Rb3+ {[%clk
0:00:35.8]} 39. Kf4 {[%clk 0:00:55.9]} 39... Rb2 {[%clk 0:00:34.7]} 40. f3
{[%clk 0:00:56.3]} 40... Rb5 {[%clk 0:00:33.9]} 41. Ra4 {[%clk 0:00:57]} 41...
Rf5+ {[%clk 0:00:33.2]} 42. Ke4 {[%clk 0:00:57.4]} 42... Rb5 {[%clk 0:00:33.6]}
43. Ke3 {[%clk 0:00:56.7]} 43... Rb3+ {[%clk 0:00:32.6]} 44. Kf4 {[%clk
0:00:57.1]} 44... Rb5 {[%clk 0:00:32.3]} 45. Rc4 {[%clk 0:00:57]} 45... Rf5+
{[%clk 0:00:31.4]} 46. Ke4 {[%clk 0:00:57.4]} 46... Ra5 {[%clk 0:00:31.9]} 47.
g4 {[%clk 0:00:52.3]} 47... hxg4 {[%clk 0:00:29.8]} 48. fxg4 {[%clk 0:00:53.2]}
48... Ra1 {[%clk 0:00:29.4]} 49. g5 {[%clk 0:00:50.6]} 49... Rf1 {[%clk
0:00:26.3]} 50. Ke5 {[%clk 0:00:50.3]} 50... Rf5+ {[%clk 0:00:25.9]} 51. Kd6
{[%clk 0:00:49.6]} 51... Rf1 {[%clk 0:00:25.1]} 52. Re4 {[%clk 0:00:48.7]} 52...
Rf5 {[%clk 0:00:23.8]} 53. Ke7 {[%clk 0:00:48.4]} 53... Ra5 {[%clk 0:00:23.2]}
54. Ke8 {[%clk 0:00:46.4]} 54... Ra8+ {[%clk 0:00:22.6]} 55. Kd7 {[%clk
0:00:46.8]} 55... Ra7+ {[%clk 0:00:23.1]} 56. Kc6 {[%clk 0:00:47.2]} 56... Ra1
{[%clk 0:00:21.7]} 57. Kd5 {[%clk 0:00:47.4]} 57... Rd1+ {[%clk 0:00:21]} 58.
Ke5 {[%clk 0:00:47.5]} 58... Ra1 {[%clk 0:00:21.2]} 59. Kf4 {[%clk 0:00:46.6]}
59... Ra5 {[%clk 0:00:21.5]} 60. Kg4 {[%clk 0:00:45.4]} 60... Rf5 {[%clk
0:00:21]} 61. Rf4 {[%clk 0:00:45.5]} 61... Rxf4+ {[%clk 0:00:20.2]} 62. Kxf4
{[%clk 0:00:46.4]} 62... f6 {[%clk 0:00:19.7]} 63. Ke4 {[%clk 0:00:45.4]} 63...
f5+ {[%clk 0:00:19.3]} 64. Ke5 {[%clk 0:00:44.7]} 64... Kf7 {[%clk 0:00:19.6]}
65. Kd5 {[%clk 0:00:44.8]} 65... Ke7 {[%clk 0:00:19.6]} 66. Ke5 {[%clk
0:00:44.6]} 66... Kf7 {[%clk 0:00:20]} 67. Kd5 {[%clk 0:00:41.7]} 67... Ke7
{[%clk 0:00:20.3]} 68. Ke5 {[%clk 0:00:40.5]} 68... Kf7 {[%clk 0:00:20]} 1/2-1/2

[Event "Late-Titled-Tuesday-Blitz-March-12-2024"]
[Site "Chess.com"]
[Date "2024.03.12"]
[Round "9"]
[White "Viktor_Poddubnyi"]
[Black "KetiTsatsalashvili"]
[Result "0-1"]
[WhiteElo "2284"]
[BlackElo "2458"]
[TimeControl "180+1"]
[EndTime "15:43:14 PDT"]
[Termination "KetiTsatsalashvili won on time"]

1. e4 {[%clk 0:02:59.4]} 1... c5 {[%clk 0:02:58.8]} 2. Nf3 {[%clk 0:02:59.1]}
2... d6 {[%clk 0:02:59]} 3. d4 {[%clk 0:02:59.5]} 3... cxd4 {[%clk 0:02:59.9]}
4. Nxd4 {[%clk 0:03:00.2]} 4... Nf6 {[%clk 0:03:00.4]} 5. Nc3 {[%clk 0:03:00.6]}
5... Nc6 {[%clk 0:03:01]} 6. Bc4 {[%clk 0:02:59.6]} 6... e6 {[%clk 0:03:01.1]}
7. Bb3 {[%clk 0:02:58.1]} 7... a6 {[%clk 0:03:01.4]} 8. Be3 {[%clk 0:02:58.1]}
8... Qc7 {[%clk 0:03:01.8]} 9. Qe2 {[%clk 0:02:57.5]} 9... Be7 {[%clk
0:03:02.4]} 10. O-O-O {[%clk 0:02:57.5]} 10... Na5 {[%clk 0:02:53]} 11. g4
{[%clk 0:02:52.9]} 11... Nxb3+ {[%clk 0:02:46.7]} 12. axb3 {[%clk 0:02:52.9]}
12... b5 {[%clk 0:02:38.1]} 13. g5 {[%clk 0:02:48.6]} 13... Nd7 {[%clk
0:02:38.3]} 14. f4 {[%clk 0:02:45.6]} 14... Nc5 {[%clk 0:02:36.7]} 15. b4 {[%clk
0:02:07.1]} 15... Na4 {[%clk 0:02:30.6]} 16. Nxa4 {[%clk 0:02:05.7]} 16... bxa4
{[%clk 0:02:31.5]} 17. f5 {[%clk 0:02:05.7]} 17... e5 {[%clk 0:02:27]} 18. Nf3
{[%clk 0:01:30.6]} 18... Bb7 {[%clk 0:02:22.5]} 19. f6 {[%clk 0:01:18]} 19...
gxf6 {[%clk 0:02:19.1]} 20. gxf6 {[%clk 0:01:18.9]} 20... Bxf6 {[%clk
0:02:18.6]} 21. Bg5 {[%clk 0:01:03.3]} 21... Bxg5+ {[%clk 0:02:12.4]} 22. Nxg5
{[%clk 0:01:04.2]} 22... h6 {[%clk 0:02:01]} 23. Qh5 {[%clk 0:00:56.2]} 23...
O-O-O {[%clk 0:01:36.5]} 24. Nxf7 {[%clk 0:00:47.9]} 24... Bxe4 {[%clk
0:01:28.3]} 25. Qg4+ {[%clk 0:00:29]} 25... Kb8 {[%clk 0:01:27]} 26. Qxe4 {[%clk
0:00:28.8]} 26... Qxf7 {[%clk 0:01:27]} 27. Qc6 {[%clk 0:00:22.4]} 27... Qb7
{[%clk 0:01:10.3]} 28. Rxd6 {[%clk 0:00:20.6]} 28... Qxb4 {[%clk 0:00:30]} 29.
Rxd8+ {[%clk 0:00:07.7]} 29... Rxd8 {[%clk 0:00:29.2]} 30. Qxa6 {[%clk
0:00:07.6]} 30... Rc8 {[%clk 0:00:20.2]} 31. Rd1 {[%clk 0:00:05]} 31... Qc5
{[%clk 0:00:17.7]} 32. Qd6+ {[%clk 0:00:05]} 32... Qxd6 {[%clk 0:00:16.9]} 33.
Rxd6 {[%clk 0:00:05.9]} 33... Rf8 {[%clk 0:00:15.9]} 34. Rxh6 {[%clk 0:00:05.5]}
34... Rf1+ {[%clk 0:00:13.3]} 35. Kd2 {[%clk 0:00:05.6]} 35... Rf2+ {[%clk
0:00:13.8]} 36. Kd3 {[%clk 0:00:06]} 36... Rf3+ {[%clk 0:00:13.2]} 37. Ke2
{[%clk 0:00:05.4]} 37... Rf5 {[%clk 0:00:10.5]} 38. Rh4 {[%clk 0:00:05.5]} 38...
Kc7 {[%clk 0:00:08.5]} 39. Rxa4 {[%clk 0:00:05.6]} 39... Kd6 {[%clk 0:00:08.1]}
40. h4 {[%clk 0:00:04.7]} 40... Kd5 {[%clk 0:00:07.8]} 41. Ke3 {[%clk
0:00:04.6]} 41... Rf1 {[%clk 0:00:05.9]} 42. h5 {[%clk 0:00:04.1]} 42... Re1+
{[%clk 0:00:03.7]} 43. Kf3 {[%clk 0:00:03.6]} 43... Rh1 {[%clk 0:00:04.3]} 44.
Kg4 {[%clk 0:00:03.7]} 44... Rg1+ {[%clk 0:00:03.9]} 45. Kf5 {[%clk 0:00:03.8]}
45... Rf1+ {[%clk 0:00:04.3]} 46. Kg6 {[%clk 0:00:03.8]} 46... e4 {[%clk
0:00:05]} 47. h6 {[%clk 0:00:02.2]} 47... e3 {[%clk 0:00:04.6]} 0-1

[Event "Late-Titled-Tuesday-Blitz-March-12-2024"]
[Site "Chess.com"]
[Date "2024.03.12"]
[Round "9"]
[White "shimastream"]
[Black "AlexeiShirov"]
[Result "1-0"]
[WhiteElo "2991"]
[BlackElo "2867"]
[TimeControl "180+1"]
[EndTime "15:43:19 PDT"]
[Termination "shimastream won by resignation"]

1. Nf3 {[%clk 0:03:00.9]} 1... d5 {[%clk 0:02:59.9]} 2. g3 {[%clk 0:03:01.6]}
2... Nf6 {[%clk 0:02:59.7]} 3. Bg2 {[%clk 0:03:01.5]} 3... Bg4 {[%clk
0:02:59.5]} 4. h3 {[%clk 0:02:55.1]} 4... Bh5 {[%clk 0:02:57.2]} 5. c4 {[%clk
0:02:54.8]} 5... e6 {[%clk 0:02:55.6]} 6. cxd5 {[%clk 0:02:50.1]} 6... exd5
{[%clk 0:02:55]} 7. Qb3 {[%clk 0:02:50.4]} 7... b6 {[%clk 0:02:51.5]} 8. Nc3
{[%clk 0:02:42.2]} 8... Be7 {[%clk 0:02:48.1]} 9. g4 {[%clk 0:02:36.8]} 9... Bg6
{[%clk 0:02:46.2]} 10. g5 {[%clk 0:02:36.2]} 10... Ne4 {[%clk 0:02:44.2]} 11.
Qxd5 {[%clk 0:02:34.3]} 11... c6 {[%clk 0:02:26.3]} 12. Qxd8+ {[%clk 0:02:32.7]}
12... Kxd8 {[%clk 0:02:22.7]} 13. Ne5 {[%clk 0:02:31.4]} 13... Nxc3 {[%clk
0:02:19]} 14. dxc3 {[%clk 0:02:32.3]} 14... Kc7 {[%clk 0:02:17.7]} 15. Bf4
{[%clk 0:02:29.4]} 15... Kb7 {[%clk 0:02:12.9]} 16. O-O-O {[%clk 0:02:27.9]}
16... Rc8 {[%clk 0:02:03.3]} 17. h4 {[%clk 0:02:06.3]} 17... Bh5 {[%clk
0:02:02.2]} 18. Rd2 {[%clk 0:01:52.9]} 18... f6 {[%clk 0:02:00.2]} 19. gxf6
{[%clk 0:01:29.6]} 19... gxf6 {[%clk 0:01:59.8]} 20. Nxc6 {[%clk 0:01:29]} 20...
Nxc6 {[%clk 0:01:43.8]} 21. Rd7+ {[%clk 0:01:28.5]} 21... Ka6 {[%clk 0:01:43.4]}
22. Bxc6 {[%clk 0:01:26.2]} 22... Rxc6 {[%clk 0:01:42.8]} 23. Rxe7 {[%clk
0:01:26.8]} 23... Rc4 {[%clk 0:01:33]} 24. Bg3 {[%clk 0:01:22.6]} 24... Bg6
{[%clk 0:01:28.8]} 25. h5 {[%clk 0:01:20.9]} 25... Re4 {[%clk 0:01:24.9]} 26.
Rxe4 {[%clk 0:01:16.4]} 26... Bxe4 {[%clk 0:01:24.1]} 27. f3 {[%clk 0:01:17.3]}
27... Bd5 {[%clk 0:01:21.7]} 28. b3 {[%clk 0:01:14.4]} 28... Rg8 {[%clk
0:01:20.8]} 29. Bf4 {[%clk 0:01:12.7]} 29... Rg2 {[%clk 0:01:20.1]} 30. c4
{[%clk 0:01:08.1]} 30... Bf7 {[%clk 0:01:18.5]} 31. Kd2 {[%clk 0:01:05.5]} 31...
Kb7 {[%clk 0:01:15]} 32. h6 {[%clk 0:01:03.4]} 32... Kc6 {[%clk 0:01:13.4]} 33.
Ke3 {[%clk 0:01:03.3]} 33... Rg8 {[%clk 0:01:08.7]} 34. Rd1 {[%clk 0:01:03.3]}
34... Re8+ {[%clk 0:01:08.1]} 35. Kf2 {[%clk 0:01:03.6]} 35... Re6 {[%clk
0:01:06.5]} 36. e4 {[%clk 0:01:03.7]} 36... Bg6 {[%clk 0:01:02.5]} 37. Rd5
{[%clk 0:01:03.8]} 37... a6 {[%clk 0:01:01.6]} 38. a4 {[%clk 0:01:03.5]} 38...
Be8 {[%clk 0:00:56.2]} 39. Be3 {[%clk 0:01:00.7]} 39... Bg6 {[%clk 0:00:54.9]}
40. Bd4 {[%clk 0:00:58.1]} 40... Kc7 {[%clk 0:00:51.2]} 41. b4 {[%clk
0:00:55.9]} 41... Rc6 {[%clk 0:00:50.1]} 42. c5 {[%clk 0:00:52.4]} 42... b5
{[%clk 0:00:49.8]} 43. axb5 {[%clk 0:00:47.5]} 43... axb5 {[%clk 0:00:49.4]} 44.
Be3 {[%clk 0:00:48.2]} 44... Ra6 {[%clk 0:00:48.5]} 45. Bf4+ {[%clk 0:00:48.5]}
45... Kc8 {[%clk 0:00:47.8]} 46. Kg3 {[%clk 0:00:40.7]} 46... Bf7 {[%clk
0:00:42.7]} 47. Rd4 {[%clk 0:00:36.4]} 47... Be6 {[%clk 0:00:38.7]} 48. Bd6
{[%clk 0:00:26.9]} 48... f5 {[%clk 0:00:37.5]} 49. Kf4 {[%clk 0:00:24.5]} 49...
fxe4 {[%clk 0:00:36.5]} 50. Rxe4 {[%clk 0:00:23.2]} 50... Kd7 {[%clk 0:00:34.4]}
51. Kg5 {[%clk 0:00:20.6]} 51... Ra8 {[%clk 0:00:33.5]} 52. Kf6 {[%clk
0:00:20.5]} 52... Rg8 {[%clk 0:00:33.2]} 53. c6+ {[%clk 0:00:16.5]} 53... Kxd6
{[%clk 0:00:32.1]} 54. Rxe6+ {[%clk 0:00:16.8]} 54... Kc7 {[%clk 0:00:31]} 55.
Re7+ {[%clk 0:00:16.9]} 55... Kxc6 {[%clk 0:00:30.7]} 56. Rxh7 {[%clk
0:00:17.8]} 56... Rg3 {[%clk 0:00:29.8]} 57. f4 {[%clk 0:00:17.9]} 57... Rb3
{[%clk 0:00:28.5]} 58. Rf7 {[%clk 0:00:14.6]} 58... Rxb4 {[%clk 0:00:28.2]} 59.
Kg5 {[%clk 0:00:04.6]} 59... Rb1 {[%clk 0:00:26.8]} 60. h7 {[%clk 0:00:03.5]}
60... Rh1 {[%clk 0:00:25.7]} 61. Rf6+ {[%clk 0:00:03.2]} 61... Kd5 {[%clk
0:00:24.8]} 62. Rh6 {[%clk 0:00:04.1]} 62... Rg1+ {[%clk 0:00:23.9]} 63. Kf5
{[%clk 0:00:04.3]} 1-0